[Event "Titled Tuesday Blitz August 02 Early 2022"]
[White "Jovic, Stanoje"]
[Black "Shkapenko, Pavel"]
[WhiteFideId "905020"]
[BlackFideId "4151933"]
[WhiteElo "2238"]
[BlackElo "2386"]
[Result "0-1"]
[Round "06"]
[TimeControl "180+1"]
[Date "2022.08.02"]
[WhiteClock "0:00:11"]
[BlackClock "0:01:03"]

1. c4 {[%clk 0:03:00]}  e5 {[%clk 0:02:59]} 2. g3 {[%clk 0:03:01]}  c6 {[%clk 0:02:55]} 3. d4 {[%clk 0:02:59]}  Bb4+ {[%clk 0:02:55]} 4. Bd2 {[%clk 0:02:58]}  Bxd2+ {[%clk 0:02:55]} 5. Qxd2 {[%clk 0:02:59]}  d6 {[%clk 0:02:56]} 6. dxe5 {[%clk 0:02:58]}  dxe5 {[%clk 0:02:56]} 7. Qxd8+ {[%clk 0:02:57]}  Kxd8 {[%clk 0:02:56]} 8. Nc3 {[%clk 0:02:57]}  Be6 {[%clk 0:02:56]} 9. O-O-O+ {[%clk 0:02:57]}  Kc7 {[%clk 0:02:56]} 10. b3 {[%clk 0:02:57]}  Nd7 {[%clk 0:02:53]} 11. f4 {[%clk 0:02:53]}  a5 {[%clk 0:02:40]} 12. a4 {[%clk 0:02:43]}  Nc5 {[%clk 0:02:35]} 13. Kb2 {[%clk 0:02:40]}  Nf6 {[%clk 0:02:31]} 14. Bg2 {[%clk 0:02:26]}  Ng4 {[%clk 0:02:28]} 15. f5 {[%clk 0:01:49]}  Bxf5 {[%clk 0:02:18]} 16. Bh3 {[%clk 0:01:48]}  Be6 {[%clk 0:02:10]} 17. Bxg4 {[%clk 0:01:46]}  Bxg4 {[%clk 0:02:10]} 18. Nf3 {[%clk 0:01:46]}  f6 {[%clk 0:02:09]} 19. h3 {[%clk 0:01:38]}  Be6 {[%clk 0:02:08]} 20. g4 {[%clk 0:01:38]}  Rad8 {[%clk 0:02:05]} 21. Rxd8 {[%clk 0:01:31]}  Kxd8 {[%clk 0:02:05]} 22. Rd1+ {[%clk 0:01:30]}  Kc7 {[%clk 0:02:05]} 23. Nd2 {[%clk 0:01:24]}  h5 {[%clk 0:02:03]} 24. gxh5 {[%clk 0:01:17]}  Rxh5 {[%clk 0:02:02]} 25. Rg1 {[%clk 0:01:17]}  Rh7 {[%clk 0:01:54]} 26. h4 {[%clk 0:01:15]}  Bf5 {[%clk 0:01:45]} 27. Rg3 {[%clk 0:01:08]}  Ne6 {[%clk 0:01:42]} 28. e4 {[%clk 0:01:02]}  Bxe4 {[%clk 0:01:37]} 29. Ndxe4 {[%clk 0:00:54]}  Rxh4 {[%clk 0:01:37]} 30. Nf2 {[%clk 0:00:54]}  f5 {[%clk 0:01:31]} 31. Rh3 {[%clk 0:00:42]}  Rxh3 {[%clk 0:01:27]} 32. Nxh3 {[%clk 0:00:42]}  Kd6 {[%clk 0:01:26]} 33. Ne2 {[%clk 0:00:35]}  e4 {[%clk 0:01:21]} 34. Kc3 {[%clk 0:00:32]}  Ke5 {[%clk 0:01:20]} 35. Ng3 {[%clk 0:00:26]}  f4 {[%clk 0:01:05]} 36. Nh5 {[%clk 0:00:18]}  e3 {[%clk 0:01:05]} 37. Kd3 {[%clk 0:00:18]}  g5 {[%clk 0:01:05]} 38. Ke2 {[%clk 0:00:14]}  g4 {[%clk 0:01:04]} 39. N3xf4 {[%clk 0:00:11]}  Nxf4+ {[%clk 0:01:03]} 0-1


[Site "https://www.chess.com"]

[Event "Titled Tuesday Blitz August 02 Early 2022"]
[White "Kevlishvili, Robby"]
[Black "Sevian, Samuel"]
[WhiteFideId "1040634"]
[BlackFideId "2040506"]
[WhiteElo "2929"]
[BlackElo "3024"]
[Result "0-1"]
[Round "06"]
[TimeControl "180+1"]
[Date "2022.08.02"]
[WhiteClock "0:00:03"]
[BlackClock "0:00:13"]

1. e4 {[%clk 0:03:00]}  c6 {[%clk 0:03:00]} 2. Nf3 {[%clk 0:03:00]}  d5 {[%clk 0:03:00]} 3. Nc3 {[%clk 0:03:01]}  g6 {[%clk 0:02:58]} 4. h3 {[%clk 0:03:00]}  Bg7 {[%clk 0:02:59]} 5. d4 {[%clk 0:03:00]}  Nf6 {[%clk 0:02:59]} 6. Bd3 {[%clk 0:03:00]}  c5 {[%clk 0:02:59]} 7. dxc5 {[%clk 0:02:39]}  dxe4 {[%clk 0:02:59]} 8. Nxe4 {[%clk 0:02:39]}  Nxe4 {[%clk 0:03:00]} 9. Bxe4 {[%clk 0:02:40]}  Qa5+ {[%clk 0:03:00]} 10. c3 {[%clk 0:02:37]}  Qxc5 {[%clk 0:03:01]} 11. O-O {[%clk 0:02:37]}  Qc7 {[%clk 0:03:01]} 12. Re1 {[%clk 0:02:33]}  O-O {[%clk 0:03:01]} 13. Bg5 {[%clk 0:02:32]}  Nc6 {[%clk 0:02:51]} 14. Qa4 {[%clk 0:02:22]}  Re8 {[%clk 0:02:42]} 15. Rad1 {[%clk 0:02:20]}  Be6 {[%clk 0:02:41]} 16. Bh4 {[%clk 0:02:10]}  Qb6 {[%clk 0:02:36]} 17. Ng5 {[%clk 0:02:07]}  Bc8 {[%clk 0:02:17]} 18. Bd5 {[%clk 0:02:03]}  e6 {[%clk 0:02:04]} 19. Bxc6 {[%clk 0:01:40]}  Qxc6 {[%clk 0:01:56]} 20. Qxc6 {[%clk 0:01:40]}  bxc6 {[%clk 0:01:57]} 21. Ne4 {[%clk 0:01:40]}  Ba6 {[%clk 0:01:38]} 22. Nf6+ {[%clk 0:01:39]}  Bxf6 {[%clk 0:01:38]} 23. Bxf6 {[%clk 0:01:40]}  Rab8 {[%clk 0:01:35]} 24. b3 {[%clk 0:01:40]}  Rb5 {[%clk 0:01:34]} 25. Rd7 {[%clk 0:01:35]}  Rf5 {[%clk 0:01:25]} 26. Bd4 {[%clk 0:01:29]}  c5 {[%clk 0:01:19]} 27. Be5 {[%clk 0:01:20]}  f6 {[%clk 0:00:51]} 28. Rxa7 {[%clk 0:01:17]}  Bd3 {[%clk 0:00:50]} 29. Bd6 {[%clk 0:01:10]}  Rd5 {[%clk 0:00:46]} 30. Bg3 {[%clk 0:01:07]}  c4 {[%clk 0:00:44]} 31. b4 {[%clk 0:01:06]}  e5 {[%clk 0:00:44]} 32. f3 {[%clk 0:01:03]}  Bc2 {[%clk 0:00:42]} 33. Rc1 {[%clk 0:00:59]}  Rd2 {[%clk 0:00:39]} 34. a4 {[%clk 0:00:57]}  Red8 {[%clk 0:00:38]} 35. a5 {[%clk 0:00:53]}  Ba4 {[%clk 0:00:37]} 36. Rb7 {[%clk 0:00:45]}  Rb2 {[%clk 0:00:30]} 37. Be1 {[%clk 0:00:41]}  e4 {[%clk 0:00:26]} 38. fxe4 {[%clk 0:00:31]}  Bc2 {[%clk 0:00:26]} 39. Re7 {[%clk 0:00:15]}  Rd6 {[%clk 0:00:27]} 40. Bf2 {[%clk 0:00:14]}  Rd2 {[%clk 0:00:25]} 41. a6 {[%clk 0:00:13]}  Bxe4 {[%clk 0:00:21]} 42. Rxe4 {[%clk 0:00:13]}  Rxf2 {[%clk 0:00:21]} 43. Rg4 {[%clk 0:00:11]}  f5 {[%clk 0:00:22]} 44. a7 {[%clk 0:00:09]}  Ra2 {[%clk 0:00:22]} 45. a8=Q+ {[%clk 0:00:07]}  Rxa8 {[%clk 0:00:22]} 46. Rxg6+ {[%clk 0:00:07]}  hxg6 {[%clk 0:00:22]} 47. Kxf2 {[%clk 0:00:08]}  Ra2+ {[%clk 0:00:19]} 48. Kf3 {[%clk 0:00:08]}  Kf7 {[%clk 0:00:20]} 49. g4 {[%clk 0:00:08]}  Ke6 {[%clk 0:00:20]} 50. Re1+ {[%clk 0:00:07]}  Kd5 {[%clk 0:00:20]} 51. Re8 {[%clk 0:00:06]}  Rc2 {[%clk 0:00:19]} 52. Re3 {[%clk 0:00:06]}  Rh2 {[%clk 0:00:17]} 53. Kf4 {[%clk 0:00:05]}  Rf2+ {[%clk 0:00:17]} 54. Kg3 {[%clk 0:00:05]}  Rf1 {[%clk 0:00:17]} 55. gxf5 {[%clk 0:00:05]}  gxf5 {[%clk 0:00:18]} 56. Rf3 {[%clk 0:00:06]}  Rg1+ {[%clk 0:00:18]} 57. Kf4 {[%clk 0:00:06]}  Ke6 {[%clk 0:00:16]} 58. Re3+ {[%clk 0:00:04]}  Kf6 {[%clk 0:00:17]} 59. Rf3 {[%clk 0:00:04]}  Re1 {[%clk 0:00:16]} 60. h4 {[%clk 0:00:03]}  Re4+ {[%clk 0:00:15]} 61. Kg3 {[%clk 0:00:03]}  Rg4+ {[%clk 0:00:15]} 62. Kh3 {[%clk 0:00:04]}  Rg1 {[%clk 0:00:15]} 63. Rg3 {[%clk 0:00:04]}  Rh1+ {[%clk 0:00:15]} 64. Kg2 {[%clk 0:00:04]}  Rxh4 {[%clk 0:00:16]} 65. Kf3 {[%clk 0:00:04]}  Ke5 {[%clk 0:00:16]} 66. Ke2 {[%clk 0:00:03]}  Rh2+ {[%clk 0:00:16]} 67. Kf3 {[%clk 0:00:02]}  Rc2 {[%clk 0:00:16]} 68. Rg8 {[%clk 0:00:02]}  Rxc3+ {[%clk 0:00:16]} 69. Ke2 {[%clk 0:00:03]}  Rb3 {[%clk 0:00:16]} 70. Rb8 {[%clk 0:00:04]}  Ke4 {[%clk 0:00:14]} 71. b5 {[%clk 0:00:04]}  Rb2+ {[%clk 0:00:14]} 72. Kd1 {[%clk 0:00:03]}  f4 {[%clk 0:00:15]} 73. b6 {[%clk 0:00:03]}  Kf3 {[%clk 0:00:15]} 74. b7 {[%clk 0:00:03]}  Rb5 {[%clk 0:00:12]} 75. Kc2 {[%clk 0:00:03]}  Rb3 {[%clk 0:00:12]} 76. Kd2 {[%clk 0:00:02]}  Rd3+ {[%clk 0:00:12]} 77. Kc2 {[%clk 0:00:02]}  Rd7 {[%clk 0:00:12]} 78. Kc3 {[%clk 0:00:03]}  Rc7 {[%clk 0:00:13]} 79. Kc2 {[%clk 0:00:02]}  c3 {[%clk 0:00:13]} 80. Rc8 {[%clk 0:00:02]}  Rxb7 {[%clk 0:00:13]} 81. Rxc3+ {[%clk 0:00:03]}  Kg2 {[%clk 0:00:13]} 82. Kd2 {[%clk 0:00:03]}  f3 {[%clk 0:00:13]} 83. Ke3 {[%clk 0:00:03]}  f2 {[%clk 0:00:12]} 84. Rc2 {[%clk 0:00:04]}  Re7+ {[%clk 0:00:13]} 85. Kf4 {[%clk 0:00:03]}  Kg1 {[%clk 0:00:13]} 0-1


[Site "https://www.chess.com"]

[Event "Titled Tuesday Blitz August 02 Early 2022"]
[White "Kosteniuk, Alexandra"]
[Black "Vasquez Schroeder, Rodrigo"]
[WhiteFideId "4128125"]
[BlackFideId "3400042"]
[WhiteElo "2469"]
[BlackElo "2567"]
[Result "0-1"]
[Round "06"]
[TimeControl "180+1"]
[Date "2022.08.02"]
[WhiteClock "0:00:31"]
[BlackClock "0:00:22"]

1. e4 {[%clk 0:02:57]}  c5 {[%clk 0:03:00]} 2. Nf3 {[%clk 0:02:57]}  d6 {[%clk 0:03:00]} 3. d4 {[%clk 0:02:57]}  cxd4 {[%clk 0:03:01]} 4. Qxd4 {[%clk 0:02:58]}  Nc6 {[%clk 0:03:00]} 5. Bb5 {[%clk 0:02:57]}  Bd7 {[%clk 0:03:00]} 6. Qd3 {[%clk 0:02:58]}  Nf6 {[%clk 0:02:57]} 7. Bg5 {[%clk 0:02:58]}  h6 {[%clk 0:02:50]} 8. Bxf6 {[%clk 0:02:57]}  gxf6 {[%clk 0:02:50]} 9. Nc3 {[%clk 0:02:57]}  e6 {[%clk 0:02:50]} 10. O-O-O {[%clk 0:02:52]}  a6 {[%clk 0:02:50]} 11. Bxc6 {[%clk 0:02:51]}  bxc6 {[%clk 0:02:49]} 12. Rhe1 {[%clk 0:02:48]}  Qb6 {[%clk 0:02:48]} 13. Nd2 {[%clk 0:02:39]}  Qxf2 {[%clk 0:02:18]} 14. Re2 {[%clk 0:02:39]}  Qf4 {[%clk 0:02:12]} 15. g3 {[%clk 0:02:39]}  Qg5 {[%clk 0:02:12]} 16. h4 {[%clk 0:02:35]}  Qc5 {[%clk 0:02:09]} 17. Nc4 {[%clk 0:02:35]}  O-O-O {[%clk 0:02:01]} 18. Nxd6+ {[%clk 0:02:15]}  Bxd6 {[%clk 0:02:00]} 19. Qxd6 {[%clk 0:02:16]}  Qxd6 {[%clk 0:02:00]} 20. Rxd6 {[%clk 0:02:17]}  Kc7 {[%clk 0:02:01]} 21. Rd3 {[%clk 0:02:17]}  Rhg8 {[%clk 0:01:55]} 22. Rf2 {[%clk 0:02:16]}  f5 {[%clk 0:01:50]} 23. exf5 {[%clk 0:02:14]}  exf5 {[%clk 0:01:51]} 24. Ne2 {[%clk 0:02:11]}  c5 {[%clk 0:01:47]} 25. Nf4 {[%clk 0:01:54]}  Be6 {[%clk 0:01:42]} 26. Rc3 {[%clk 0:01:48]}  Kb6 {[%clk 0:01:39]} 27. Re2 {[%clk 0:01:46]}  Rd6 {[%clk 0:01:39]} 28. Re5 {[%clk 0:01:44]}  Rc6 {[%clk 0:01:26]} 29. b3 {[%clk 0:01:41]}  Rd8 {[%clk 0:01:16]} 30. Rce3 {[%clk 0:01:38]}  Rdd6 {[%clk 0:01:11]} 31. c4 {[%clk 0:01:37]}  Kc7 {[%clk 0:01:09]} 32. Nd3 {[%clk 0:01:36]}  Kb6 {[%clk 0:01:09]} 33. Kc2 {[%clk 0:01:34]}  f6 {[%clk 0:01:03]} 34. Rxe6 {[%clk 0:01:27]}  Rxe6 {[%clk 0:01:03]} 35. Rf3 {[%clk 0:01:28]}  Re2+ {[%clk 0:01:00]} 36. Kc3 {[%clk 0:01:28]}  Rd6 {[%clk 0:01:01]} 37. Nf4 {[%clk 0:01:26]}  Rxa2 {[%clk 0:00:56]} 38. Nd5+ {[%clk 0:01:26]}  Kc6 {[%clk 0:00:57]} 39. Rxf5 {[%clk 0:01:26]}  Rg2 {[%clk 0:00:56]} 40. Rf3 {[%clk 0:01:27]}  a5 {[%clk 0:00:54]} 41. Nxf6 {[%clk 0:01:18]}  Rdd2 {[%clk 0:00:49]} 42. Ne4 {[%clk 0:01:07]}  Rc2+ {[%clk 0:00:48]} 43. Kd3 {[%clk 0:01:08]}  Rb2 {[%clk 0:00:49]} 44. Rf6+ {[%clk 0:01:08]}  Kc7 {[%clk 0:00:49]} 45. Rf7+ {[%clk 0:01:03]}  Kd8 {[%clk 0:00:45]} 46. Nxc5 {[%clk 0:01:03]}  Rxg3+ {[%clk 0:00:45]} 47. Ke4 {[%clk 0:00:57]}  Rg4+ {[%clk 0:00:41]} 48. Kd5 {[%clk 0:00:58]}  Rxh4 {[%clk 0:00:40]} 49. Kd6 {[%clk 0:00:43]}  Rd2+ {[%clk 0:00:39]} 50. Kc6 {[%clk 0:00:43]}  Rg2 {[%clk 0:00:32]} 51. Ra7 {[%clk 0:00:34]}  Rg6+ {[%clk 0:00:30]} 52. Kb5 {[%clk 0:00:32]}  Rh5 {[%clk 0:00:29]} 53. Rxa5 {[%clk 0:00:31]}  Rxc5+ {[%clk 0:00:20]} 54. Kxc5 {[%clk 0:00:32]}  Rg5+ {[%clk 0:00:21]} 55. Kb6 {[%clk 0:00:32]}  Rxa5 {[%clk 0:00:21]} 56. Kxa5 {[%clk 0:00:33]}  h5 {[%clk 0:00:22]} 57. b4 {[%clk 0:00:30]}  h4 {[%clk 0:00:22]} 58. b5 {[%clk 0:00:31]}  h3 {[%clk 0:00:22]} 0-1


[Site "https://www.chess.com"]

[Event "Titled Tuesday Blitz August 02 Early 2022"]
[White "Lobanov, Sergei"]
[Black "Vachylia, Andrii"]
[WhiteFideId "24183750"]
[BlackFideId "14137224"]
[WhiteElo "2524"]
[BlackElo "2318"]
[Result "1-0"]
[Round "06"]
[TimeControl "180+1"]
[Date "2022.08.02"]
[WhiteClock "0:00:06"]
[BlackClock "0:00:04"]

1. Nf3 {[%clk 0:03:00]}  Nf6 {[%clk 0:02:59]} 2. e3 {[%clk 0:03:00]}  g6 {[%clk 0:02:59]} 3. b3 {[%clk 0:03:00]}  Bg7 {[%clk 0:02:59]} 4. Bb2 {[%clk 0:03:01]}  O-O {[%clk 0:03:00]} 5. c4 {[%clk 0:03:00]}  d6 {[%clk 0:03:00]} 6. Nc3 {[%clk 0:03:00]}  e5 {[%clk 0:02:59]} 7. d4 {[%clk 0:02:58]}  exd4 {[%clk 0:02:50]} 8. Nxd4 {[%clk 0:02:59]}  Nc6 {[%clk 0:02:50]} 9. Be2 {[%clk 0:02:57]}  Nxd4 {[%clk 0:02:49]} 10. Qxd4 {[%clk 0:02:55]}  Re8 {[%clk 0:02:12]} 11. Qd2 {[%clk 0:02:42]}  Ne4 {[%clk 0:01:45]} 12. Nxe4 {[%clk 0:02:41]}  Rxe4 {[%clk 0:01:46]} 13. Bf3 {[%clk 0:02:33]}  Re8 {[%clk 0:01:44]} 14. O-O {[%clk 0:02:26]}  Rb8 {[%clk 0:01:39]} 15. Bxg7 {[%clk 0:02:20]}  Kxg7 {[%clk 0:01:40]} 16. Qd4+ {[%clk 0:02:20]}  Qf6 {[%clk 0:01:38]} 17. Qxa7 {[%clk 0:02:20]}  Bf5 {[%clk 0:01:03]} 18. Bxb7 {[%clk 0:02:12]}  Bd3 {[%clk 0:00:56]} 19. Rfe1 {[%clk 0:01:29]}  Rxb7 {[%clk 0:00:56]} 20. Qxb7 {[%clk 0:01:30]}  Be4 {[%clk 0:00:56]} 21. Qb4 {[%clk 0:01:31]}  Qg5 {[%clk 0:00:53]} 22. f3 {[%clk 0:01:30]}  Bxf3 {[%clk 0:00:53]} 23. Qd2 {[%clk 0:01:30]}  Bc6 {[%clk 0:00:41]} 24. Re2 {[%clk 0:01:24]}  h5 {[%clk 0:00:41]} 25. Qd4+ {[%clk 0:01:13]}  Kg8 {[%clk 0:00:40]} 26. Rae1 {[%clk 0:01:11]}  Re4 {[%clk 0:00:39]} 27. Qd2 {[%clk 0:01:07]}  h4 {[%clk 0:00:38]} 28. h3 {[%clk 0:01:06]}  Qg3 {[%clk 0:00:36]} 29. Rf2 {[%clk 0:01:05]}  Re5 {[%clk 0:00:33]} 30. e4 {[%clk 0:00:37]}  Bxe4 {[%clk 0:00:22]} 31. Qf4 {[%clk 0:00:33]}  f5 {[%clk 0:00:21]} 32. a4 {[%clk 0:00:22]}  Qc3 {[%clk 0:00:16]} 33. Re3 {[%clk 0:00:18]}  Qb4 {[%clk 0:00:11]} 34. Qxh4 {[%clk 0:00:15]}  Qb6 {[%clk 0:00:08]} 35. Qg5 {[%clk 0:00:11]}  Kg7 {[%clk 0:00:04]} 36. Kh2 {[%clk 0:00:11]}  Qd4 {[%clk 0:00:05]} 37. h4 {[%clk 0:00:08]}  Re6 {[%clk 0:00:02]} 38. h5 {[%clk 0:00:08]}  Qe5+ {[%clk 0:00:03]} 39. Rg3 {[%clk 0:00:07]}  Kh7 {[%clk 0:00:03]} 40. hxg6+ {[%clk 0:00:07]}  Kg7 {[%clk 0:00:04]} 41. Qh4 {[%clk 0:00:06]}  f4 {[%clk 0:00:04]} 42. Qh7+ {[%clk 0:00:06]}  Kf8 {[%clk 0:00:04]} 43. Qf7# {[%clk 0:00:06]} 1-0


[Site "https://www.chess.com"]

[Event "Titled Tuesday Blitz August 02 Early 2022"]
[White "Nasir, Zehn"]
[Black "Molina, Roberto Junio Brito"]
[WhiteFideId "2613239"]
[BlackFideId "2109450"]
[WhiteElo "1993"]
[BlackElo "2432"]
[Result "0-1"]
[Round "06"]
[TimeControl "180+1"]
[Date "2022.08.02"]
[WhiteClock "0:00:27"]
[BlackClock "0:01:54"]

1. d4 {[%clk 0:03:00]}  c6 {[%clk 0:03:00]} 2. Bf4 {[%clk 0:02:48]}  d5 {[%clk 0:03:01]} 3. e3 {[%clk 0:02:48]}  Qb6 {[%clk 0:03:01]} 4. Nd2 {[%clk 0:02:31]}  Qxb2 {[%clk 0:03:00]} 5. Bd3 {[%clk 0:02:31]}  Nf6 {[%clk 0:02:58]} 6. Ngf3 {[%clk 0:02:29]}  e6 {[%clk 0:02:58]} 7. O-O {[%clk 0:02:29]}  Qb6 {[%clk 0:02:57]} 8. c4 {[%clk 0:02:21]}  Qd8 {[%clk 0:02:56]} 9. Rb1 {[%clk 0:02:18]}  Bd6 {[%clk 0:02:54]} 10. Ne5 {[%clk 0:02:15]}  O-O {[%clk 0:02:53]} 11. c5 {[%clk 0:02:13]}  Bc7 {[%clk 0:02:53]} 12. Qf3 {[%clk 0:02:08]}  Nfd7 {[%clk 0:02:50]} 13. Qh5 {[%clk 0:01:49]}  f5 {[%clk 0:02:49]} 14. Ndf3 {[%clk 0:01:38]}  Nxe5 {[%clk 0:02:47]} 15. dxe5 {[%clk 0:01:33]}  Qe8 {[%clk 0:02:43]} 16. Qh3 {[%clk 0:01:29]}  Nd7 {[%clk 0:02:42]} 17. g4 {[%clk 0:01:25]}  Nxc5 {[%clk 0:02:39]} 18. Bc2 {[%clk 0:01:20]}  Ne4 {[%clk 0:02:38]} 19. Kh1 {[%clk 0:01:17]}  fxg4 {[%clk 0:02:36]} 20. Qxg4 {[%clk 0:01:14]}  Qg6 {[%clk 0:02:36]} 21. Qxg6 {[%clk 0:01:02]}  hxg6 {[%clk 0:02:36]} 22. Bxe4 {[%clk 0:01:03]}  dxe4 {[%clk 0:02:36]} 23. Ng5 {[%clk 0:01:04]}  Rf5 {[%clk 0:02:27]} 24. Rfd1 {[%clk 0:00:58]}  Kf8 {[%clk 0:02:26]} 25. Nxe4 {[%clk 0:00:44]}  Ke8 {[%clk 0:02:25]} 26. Nd6+ {[%clk 0:00:41]}  Bxd6 {[%clk 0:02:25]} 27. Rxd6 {[%clk 0:00:42]}  c5 {[%clk 0:02:06]} 28. Rbd1 {[%clk 0:00:40]}  b6 {[%clk 0:02:01]} 29. Rd8+ {[%clk 0:00:40]}  Kf7 {[%clk 0:02:01]} 30. Rh8 {[%clk 0:00:36]}  Bb7+ {[%clk 0:02:00]} 31. e4 {[%clk 0:00:27]}  Bxe4+ {[%clk 0:01:57]} 32. f3 {[%clk 0:00:27]}  Bxf3+ {[%clk 0:01:56]} 33. Kg1 {[%clk 0:00:27]}  Rxh8 {[%clk 0:01:53]} 34. Rd7+ {[%clk 0:00:27]}  Kg8 {[%clk 0:01:54]} 0-1


[Site "https://www.chess.com"]

[Event "Titled Tuesday Blitz August 02 Early 2022"]
[White "Oparin, Grigoriy"]
[Black "Seo, Jung Min"]
[WhiteFideId "24125890"]
[BlackFideId "1734687"]
[WhiteElo "2639"]
[BlackElo "2414"]
[Result "1-0"]
[Round "06"]
[TimeControl "180+1"]
[Date "2022.08.02"]
[WhiteClock "0:00:47"]
[BlackClock "0:01:39"]

1. e4 {[%clk 0:03:00]}  c5 {[%clk 0:03:00]} 2. Nf3 {[%clk 0:03:01]}  d6 {[%clk 0:03:00]} 3. d4 {[%clk 0:03:02]}  cxd4 {[%clk 0:03:00]} 4. Nxd4 {[%clk 0:03:03]}  Nf6 {[%clk 0:03:01]} 5. Nc3 {[%clk 0:03:03]}  a6 {[%clk 0:03:01]} 6. a4 {[%clk 0:03:04]}  e5 {[%clk 0:03:00]} 7. Nf3 {[%clk 0:03:05]}  Be7 {[%clk 0:03:00]} 8. Bg5 {[%clk 0:03:05]}  Be6 {[%clk 0:02:59]} 9. Bxf6 {[%clk 0:03:06]}  Bxf6 {[%clk 0:03:00]} 10. Nd5 {[%clk 0:03:06]}  O-O {[%clk 0:03:00]} 11. Bc4 {[%clk 0:03:07]}  Nd7 {[%clk 0:02:58]} 12. O-O {[%clk 0:03:06]}  Rc8 {[%clk 0:02:58]} 13. Ba2 {[%clk 0:03:06]}  Nb6 {[%clk 0:02:51]} 14. c3 {[%clk 0:03:05]}  Nc4 {[%clk 0:02:46]} 15. Bxc4 {[%clk 0:02:50]}  Rxc4 {[%clk 0:02:46]} 16. Nxf6+ {[%clk 0:02:49]}  Qxf6 {[%clk 0:02:44]} 17. Qxd6 {[%clk 0:02:48]}  Rxe4 {[%clk 0:02:44]} 18. Rfe1 {[%clk 0:02:44]}  Bf5 {[%clk 0:02:40]} 19. Qd5 {[%clk 0:02:29]}  Rxe1+ {[%clk 0:02:39]} 20. Rxe1 {[%clk 0:02:29]}  Qb6 {[%clk 0:02:39]} 21. Qxe5 {[%clk 0:02:19]}  Bd7 {[%clk 0:02:37]} 22. b4 {[%clk 0:01:41]}  Bxa4 {[%clk 0:02:37]} 23. Nd4 {[%clk 0:01:42]}  g6 {[%clk 0:02:33]} 24. Qg3 {[%clk 0:01:35]}  Bd7 {[%clk 0:02:25]} 25. h4 {[%clk 0:01:34]}  h5 {[%clk 0:02:23]} 26. Re7 {[%clk 0:01:33]}  Qd8 {[%clk 0:02:22]} 27. Qd6 {[%clk 0:01:31]}  Bc8 {[%clk 0:02:21]} 28. Qe5 {[%clk 0:01:32]}  Bd7 {[%clk 0:02:17]} 29. Qf6 {[%clk 0:01:22]}  Qc8 {[%clk 0:02:11]} 30. Nf3 {[%clk 0:01:15]}  Bb5 {[%clk 0:01:49]} 31. Ne5 {[%clk 0:01:02]}  Qf5 {[%clk 0:01:42]} 32. Qxf5 {[%clk 0:00:59]}  gxf5 {[%clk 0:01:41]} 33. Rxb7 {[%clk 0:01:00]}  Rc8 {[%clk 0:01:41]} 34. Nxf7 {[%clk 0:00:48]}  Rxc3 {[%clk 0:01:40]} 35. Nh6+ {[%clk 0:00:47]}  Kf8 {[%clk 0:01:40]} 36. Nxf5 {[%clk 0:00:46]}  Rc4 {[%clk 0:01:39]} 37. Rb8+ {[%clk 0:00:47]} 1-0


[Site "https://www.chess.com"]

[Event "Titled Tuesday Blitz August 02 Early 2022"]
[White "Pranav Anand"]
[Black "Makarian, Rudik"]
[WhiteFideId "46626786"]
[BlackFideId "44105681"]
[WhiteElo "2806"]
[BlackElo "2896"]
[Result "0-1"]
[Round "06"]
[TimeControl "180+1"]
[Date "2022.08.02"]
[WhiteClock "0:00:58"]
[BlackClock "0:00:46"]

1. Nf3 {[%clk 0:03:00]}  Nf6 {[%clk 0:02:59]} 2. g3 {[%clk 0:02:59]}  b5 {[%clk 0:02:54]} 3. Bg2 {[%clk 0:02:59]}  Bb7 {[%clk 0:02:55]} 4. a4 {[%clk 0:02:59]}  b4 {[%clk 0:02:55]} 5. d3 {[%clk 0:02:56]}  e6 {[%clk 0:02:53]} 6. O-O {[%clk 0:02:56]}  Be7 {[%clk 0:02:53]} 7. e4 {[%clk 0:02:57]}  O-O {[%clk 0:02:53]} 8. Re1 {[%clk 0:02:56]}  d5 {[%clk 0:02:51]} 9. e5 {[%clk 0:02:56]}  Nfd7 {[%clk 0:02:51]} 10. Bf4 {[%clk 0:02:56]}  c5 {[%clk 0:02:52]} 11. h4 {[%clk 0:02:57]}  Nc6 {[%clk 0:02:52]} 12. h5 {[%clk 0:02:58]}  h6 {[%clk 0:02:52]} 13. Nbd2 {[%clk 0:02:57]}  Qc7 {[%clk 0:02:52]} 14. Nf1 {[%clk 0:02:58]}  Rfc8 {[%clk 0:02:53]} 15. Qd2 {[%clk 0:02:56]}  Qd8 {[%clk 0:02:53]} 16. N1h2 {[%clk 0:02:54]}  a5 {[%clk 0:02:50]} 17. g4 {[%clk 0:02:54]}  Ra6 {[%clk 0:02:44]} 18. g5 {[%clk 0:02:49]}  hxg5 {[%clk 0:02:43]} 19. Nxg5 {[%clk 0:02:49]}  Ncxe5 {[%clk 0:02:36]} 20. Bh3 {[%clk 0:02:38]}  Bf6 {[%clk 0:02:24]} 21. Kf1 {[%clk 0:02:06]}  d4 {[%clk 0:02:19]} 22. Ke2 {[%clk 0:02:06]}  c4 {[%clk 0:02:18]} 23. Rg1 {[%clk 0:02:04]}  b3 {[%clk 0:02:11]} 24. h6 {[%clk 0:01:59]}  cxd3+ {[%clk 0:02:06]} 25. Ke1 {[%clk 0:01:57]}  Rxc2 {[%clk 0:02:05]} 26. Qd1 {[%clk 0:01:57]}  Re2+ {[%clk 0:01:49]} 27. Kf1 {[%clk 0:01:58]}  Rc6 {[%clk 0:01:48]} 28. Ng4 {[%clk 0:01:41]}  Bxg5 {[%clk 0:01:32]} 29. Nxe5 {[%clk 0:01:38]}  Rxe5 {[%clk 0:01:06]} 30. Bxe5 {[%clk 0:01:38]}  Nxe5 {[%clk 0:01:06]} 31. Qh5 {[%clk 0:01:38]}  d2 {[%clk 0:00:51]} 32. Rd1 {[%clk 0:01:07]}  Rc1 {[%clk 0:00:48]} 33. Bg2 {[%clk 0:00:58]}  Ba6+ {[%clk 0:00:46]} 0-1


[Site "https://www.chess.com"]